[Event "RUS-chT Men Rapid 2019"]
[Site "Sochi"]
[Date "2019.10.18"]
[Round "3.26"]
[White "Nazaretyan, Tigran"]
[Black "Papenin, Nikolai"]
[Result "1-0"]
[ECO "A56"]
[WhiteElo "2297"]
[BlackElo "2295"]
[Annotator "NA"]
[PlyCount "91"]
[EventDate "2019.10.18"]
[EventType "swiss"]
[EventCountry "RUS"]
[SourceTitle "playchess.com"]
[Source "ChessBase"]
[SourceQuality "1"]
[TimeControl "900+10"]

1. d4 {[%emt 0:00:00]} Nf6 {[%emt 0:00:00]} 2. c4 {[%emt 0:00:00]} c5 {[%emt 0:00:00]} 3. dxc5 {[%emt 0:00:00]} e6 {[%emt 0:00:00]} 4. a3 {[%emt 0:00:47]} Bxc5 {[%emt 0:00:00]} 5. Nc3 {[%emt 0:00:29]} O-O {[%emt 0:00:05]} 6. b4 {[%emt 0:00:06]} Be7 {[%emt 0:00:02]} 7. e4 {[%emt 0:00:16]} d6 {[%emt 0:00:11]} 8. Nf3 {[%emt 0:00:07]} a6 {[%emt 0:00:39]} 9. Bd3 {[%emt 0:00:25]} Nbd7 {[%emt 0:00:20]} 10. h3 {[%emt 0:00:32]} b6 {[%emt 0:00:12]} 11. Bf4 {[%emt 0:00:06]} Bb7 {[%emt 0:00:13]} 12. O-O {[%emt 0:00:04]} Qc7 {[%emt 0:00:27]} 13. Qe2 {[%emt 0:00:36]} Ne5 {[%emt 0:01:13]} 14. Nxe5 {[%emt 0:00:18]} dxe5 {[%emt 0:00:03]} 15. Be3 {[%emt 0:00:21]} Rfd8 {[%emt 0:01:14]} 16. Rfc1 {[%emt 0:00:08]} Rab8 {[%emt 0:01:30]} 17. Na4 {[%emt 0:02:49]} Ba8 {[%emt 0:03:58]} 18. c5 {[%emt 0:01:54]} b5 {[%emt 0:01:01]} 19. Nc3 {[%emt 0:00:52]} Rd4 {[%emt 0:00:05]} 20. Bxd4 {[%emt 0:01:35]} exd4 {[%emt 0:00:01]} 21. Nb1 {[%emt 0:00:24]} Qf4 {[%emt 0:02:02]} 22. Nd2 {[%emt 0:00:28]} Bc6 {[%emt 0:00:09]} 23. Nf3 {[%emt 0:01:10]} Rd8 {[%emt 0:00:36]} 24. Re1 {[%emt 0:00:42]} e5 {[%emt 0:03:13]} 25. g3 {[%emt 0:00:19]} Qh6 {[%emt 0:00:01]} 26. Nxe5 {[%emt 0:00:05]} Ba8 {[%emt 0:00:28]} 27. h4 {[%emt 0:00:39]} Re8 {[%emt 0:00:03]} 28. Qa2 {[%emt 0:00:08]} Qh5 {[%emt 0:00:08]} 29. f4 {[%emt 0:00:23]} Rf8 {[%emt 0:00:02]} 30. Rac1 {[%emt 0:00:29]} Bb7 {[%emt 0:00:20]} 31. Rcd1 {[%emt 0:00:39]} Qh6 {[%emt 0:00:08]} 32. Bc2 {[%emt 0:00:21]} Nh5 {[%emt 0:00:04]} 33. Qb3 {[%emt 0:01:00]} Nxf4 {[%emt 0:00:04]} 34. gxf4 {[%emt 0:00:24]} Qxf4 {[%emt 0:00:02]} 35. Nf3 Qg3+ {[%emt 0:00:17]} 36. Kh1 {[%emt 0:00:28]} Kh8 {[%emt 0:01:23]} 37. Ng1 {[%emt 0:00:39]} Qxh4+ {[%emt 0:00:07]} 38. Qh3 {[%emt 0:00:02]} Qf2 {[%emt 0:00:01]} 39. Re2 {[%emt 0:00:08]} Qf4 {[%emt 0:00:08]} 40. Rf1 {[%emt 0:00:08]} Qe5 {[%emt 0:00:14]} 41. Nf3 {[%emt 0:00:08]} Qc7 {[%emt 0:00:33]} 42. Bd3 {[%emt 0:00:55]} g6 {[%emt 0:00:06]} 43. Rh2 {[%emt 0:00:09]} h5 {[%emt 0:00:04]} 44. Rg1 {[%emt 0:00:03]} h4 {[%emt 0:00:37]} 45. Nxh4 {[%emt 0:00:09]} Kg7 {[%emt 0:00:01]} 46. Nf5+ {[%emt 0:00:04]} 1-0

[Event "RUS-chT Men Rapid 2019"]
[Site "Sochi"]
[Date "2019.10.18"]
[Round "3.27"]
[White "Derjabin, Ilja"]
[Black "Ivlev, Aleksey"]
[Result "1-0"]
[ECO "A65"]
[WhiteElo "2333"]
[BlackElo "2292"]
[Annotator "NA"]
[PlyCount "61"]
[EventDate "2019.10.18"]
[EventType "swiss"]
[EventCountry "RUS"]
[SourceTitle "playchess.com"]
[Source "ChessBase"]
[SourceQuality "1"]
[TimeControl "900+10"]

1. d4 {[%emt 0:00:00]} Nf6 {[%emt 0:00:00]} 2. c4 {[%emt 0:00:00]} e6 {[%emt 0:00:00]} 3. Nc3 {[%emt 0:00:00]} c5 {[%emt 0:00:00]} 4. d5 {[%emt 0:00:00]} exd5 {[%emt 0:00:01]} 5. cxd5 {[%emt 0:00:00]} d6 {[%emt 0:00:01]} 6. e4 {[%emt 0:00:00]} g6 {[%emt 0:00:01]} 7. Nge2 {[%emt 0:00:02]} Bg7 {[%emt 0:00:04]} 8. Ng3 {[%emt 0:00:01]} O-O {[%emt 0:00:08]} 9. Be2 {[%emt 0:00:01]} a6 {[%emt 0:01:04]} 10. a4 {[%emt 0:00:02]} Re8 {[%emt 0:00:13]} 11. O-O {[%emt 0:00:04]} h5 {[%emt 0:00:02]} 12. Bg5 {[%emt 0:00:02]} Qb6 {[%emt 0:00:23]} 13. a5 {[%emt 0:00:44]} Qc7 {[%emt 0:00:28]} 14. f4 {[%emt 0:00:08]} Bg4 {[%emt 0:02:05]} 15. Bxf6 {[%emt 0:02:10]} Bxe2 {[%emt 0:00:02]} 16. Qxe2 {[%emt 0:00:02]} Bxf6 {[%emt 0:00:01]} 17. e5 {[%emt 0:00:01]} dxe5 {[%emt 0:00:48]} 18. Nce4 {[%emt 0:00:25]} Nd7 {[%emt 0:02:14]} 19. f5 {[%emt 0:00:03]} Bg7 {[%emt 0:00:50]} 20. fxg6 {[%emt 0:07:10]} fxg6 {[%emt 0:00:03]} 21. d6 {[%emt 0:00:01]} Qc6 {[%emt 0:01:43]} 22. Qc4+ {[%emt 0:00:02]} Kh8 {[%emt 0:00:01]} 23. Qf7 {[%emt 0:00:03]} Nf8 {[%emt 0:02:00]} 24. Nxh5 {[%emt 0:01:02]} gxh5 {[%emt 0:00:35]} 25. Qxh5+ {[%emt 0:00:05]} Kg8 {[%emt 0:00:55]} 26. Ng5 {[%emt 0:00:30]} Qd7 {[%emt 0:02:00]} 27. Rf7 {[%emt 0:00:56]} Red8 {[%emt 0:00:01]} 28. Raf1 {[%emt 0:00:30]} e4 {[%emt 0:00:38]} 29. Rxf8+ {[%emt 0:00:19]} Bxf8 {[%emt 0:00:08]} 30. Rf7 {[%emt 0:00:02]} Bg7 {[%emt 0:00:42]} 31. Qh7# 1-0

[Event "RUS-chT Men Rapid 2019"]
[Site "Sochi"]
[Date "2019.10.18"]
[Round "3.28"]
[White "Tenikashvili, Georgij"]
[Black "Kurbedinov, Ramis"]
[Result "0-1"]
[ECO "E61"]
[WhiteElo "2337"]
[BlackElo "2280"]
[Annotator "NA"]
[PlyCount "72"]
[EventDate "2019.10.18"]
[EventType "swiss"]
[EventCountry "RUS"]
[SourceTitle "playchess.com"]
[Source "ChessBase"]
[SourceQuality "1"]
[TimeControl "900+10"]

1. d4 {[%emt 0:00:00]} Nf6 {[%emt 0:00:00]} 2. Nf3 {[%emt 0:00:00]} g6 {[%emt 0:00:03]} 3. c4 {[%emt 0:00:02]} Bg7 {[%emt 0:00:01]} 4. Nc3 {[%emt 0:00:02]} d6 {[%emt 0:00:01]} 5. Bg5 {[%emt 0:00:03]} h6 {[%emt 0:00:28]} 6. Bh4 {[%emt 0:00:03]} O-O {[%emt 0:00:07]} 7. e3 {[%emt 0:00:04]} c6 {[%emt 0:00:20]} 8. Be2 {[%emt 0:00:06]} a6 {[%emt 0:00:04]} 9. a4 {[%emt 0:00:32]} a5 {[%emt 0:01:22]} 10. O-O {[%emt 0:01:07]} Na6 {[%emt 0:00:03]} 11. e4 {[%emt 0:02:08]} g5 {[%emt 0:01:44]} 12. Bg3 {[%emt 0:00:05]} Nh5 {[%emt 0:00:04]} 13. Qd2 {[%emt 0:01:34]} Nb4 {[%emt 0:01:23]} 14. Rad1 {[%emt 0:00:30]} f5 {[%emt 0:01:41]} 15. Ne1 {[%emt 0:04:38]} Nxg3 {[%emt 0:00:06]} 16. hxg3 {[%emt 0:01:05]} fxe4 {[%emt 0:01:00]} 17. Nxe4 {[%emt 0:00:03]} Bf5 {[%emt 0:00:04]} 18. Qe3 {[%emt 0:00:14]} Qc8 {[%emt 0:01:38]} 19. Nc3 {[%emt 0:02:04]} Qe6 {[%emt 0:00:17]} 20. Qxe6+ {[%emt 0:00:10]} Bxe6 {[%emt 0:00:01]} 21. Rd2 {[%emt 0:01:39]} Rf7 {[%emt 0:02:02]} 22. f4 {[%emt 0:01:51]} g4 {[%emt 0:01:41]} 23. Kf2 {[%emt 0:00:14]} Bf5 {[%emt 0:00:19]} 24. Ke3 {[%emt 0:00:15]} Re8 {[%emt 0:00:38]} 25. Bd3 {[%emt 0:00:06]} e5 {[%emt 0:00:19]} 26. fxe5 {[%emt 0:00:15]} dxe5 {[%emt 0:00:50]} 27. d5 {[%emt 0:00:04]} e4 {[%emt 0:00:28]} 28. Bb1 {[%emt 0:00:02]} Nd3 {[%emt 0:00:52]} 29. Ne2 {[%emt 0:00:29]} c5 {[%emt 0:00:29]} 30. b3 {[%emt 0:00:05]} h5 {[%emt 0:00:23]} 31. Bc2 {[%emt 0:00:01]} h4 {[%emt 0:00:33]} 32. gxh4 {[%emt 0:00:06]} g3 {[%emt 0:00:24]} 33. Nf4 {[%emt 0:00:09]} Bd4+ {[%emt 0:00:13]} 34. Ke2 {[%emt 0:00:01]} Bg4+ {[%emt 0:00:02]} 35. Nf3 {[%emt 0:00:01]} exf3+ {[%emt 0:00:17]} 36. Kxd3 {[%emt 0:00:02]} Bf5# {[%emt 0:00:03]} 0-1

[Event "RUS-chT Men Rapid 2019"]
[Site "Sochi"]
[Date "2019.10.18"]
[Round "4.2"]
[White "Yuffa, Daniil"]
[Black "Potkin, Vladimir"]
[Result "1/2-1/2"]
[ECO "E04"]
[WhiteElo "2577"]
[BlackElo "2583"]
[Annotator "ChessBase"]
[PlyCount "44"]
[EventDate "2019.10.18"]
[EventType "swiss"]
[EventCountry "RUS"]
[SourceTitle "playchess.com"]
[Source "ChessBase"]
[SourceQuality "1"]
[TimeControl "900+10"]

1. d4 {[%emt 0:00:00]} Nf6 {[%emt 0:00:00]} 2. c4 {[%emt 0:00:00]} e6 {[%emt 0:00:22]} 3. g3 {[%emt 0:00:01]} d5 {[%emt 0:00:09]} 4. Bg2 {[%emt 0:00:02]} dxc4 {[%emt 0:00:17]} 5. Nf3 {[%emt 0:00:05]} a6 {[%emt 0:00:05]} 6. O-O {[%emt 0:00:13]} Nc6 {[%emt 0:00:04]} 7. Bg5 {[%emt 0:00:27]} Be7 {[%emt 0:00:13]} 8. e3 {[%emt 0:00:03]} O-O {[%emt 0:01:22]} 9. Nbd2 {[%emt 0:00:22]} e5 {[%emt 0:00:28]} 10. Nxc4 {[%emt 0:00:03]} exd4 {[%emt 0:00:03]} 11. Nxd4 {[%emt 0:00:02]} Nxd4 {[%emt 0:00:02]} 12. Qxd4 {[%emt 0:00:12]} Qxd4 {[%emt 0:00:09]} 13. exd4 {[%emt 0:00:02]} h6 {[%emt 0:00:49]} 14. Bf4 {[%emt 0:00:29]} Be6 {[%emt 0:00:09]} 15. Rfe1 {[%emt 0:02:09]} Bxc4 {[%emt 0:03:17]} 16. Rxe7 {[%emt 0:00:05]} Nd5 {[%emt 0:00:02]} 17. Bxd5 {[%emt 0:01:57]} Bxd5 {[%emt 0:00:02]} 18. Rxc7 {[%emt 0:02:14]} Rac8 {[%emt 0:00:15]} 19. Rc5 {[%emt 0:00:34]} Rfd8 {[%emt 0:02:33]} 20. b3 {[%emt 0:02:18]} Rxc5 {[%emt 0:00:47]} 21. dxc5 {[%emt 0:00:04]} Bf3 {[%emt 0:00:01]} 22. Re1 {[%emt 0:00:56]} Rd5 {[%emt 0:00:34]} 1/2-1/2

[Event "RUS-chT Men Rapid 2019"]
[Site "Sochi"]
[Date "2019.10.18"]
[Round "4.5"]
[White "Goryachkina, Aleksandra"]
[Black "Tsydypov, Zhamsaran"]
[Result "1/2-1/2"]
[ECO "B50"]
[WhiteElo "2575"]
[BlackElo "2553"]
[Annotator "ChessBase"]
[PlyCount "109"]
[EventDate "2019.10.18"]
[EventType "swiss"]
[EventCountry "RUS"]
[SourceTitle "playchess.com"]
[Source "ChessBase"]
[SourceQuality "1"]
[TimeControl "900+10"]

1. e4 {[%emt 0:00:00]} c5 {[%emt 0:00:05]} 2. Nf3 {[%emt 0:00:00]} d6 {[%emt 0:00:03]} 3. c3 {[%emt 0:00:00]} Nf6 {[%emt 0:00:08]} 4. Be2 {[%emt 0:00:09]} g6 {[%emt 0:00:06]} 5. O-O {[%emt 0:00:03]} Bg7 {[%emt 0:00:02]} 6. Bb5+ {[%emt 0:00:09]} Nbd7 {[%emt 0:00:25]} 7. Re1 {[%emt 0:00:09]} a6 {[%emt 0:00:11]} 8. Bf1 {[%emt 0:00:08]} O-O {[%emt 0:00:20]} 9. d4 {[%emt 0:00:03]} cxd4 {[%emt 0:01:37]} 10. cxd4 {[%emt 0:00:01]} b5 {[%emt 0:00:01]} 11. a3 {[%emt 0:00:44]} Bb7 {[%emt 0:00:11]} 12. Nc3 {[%emt 0:00:02]} Rc8 {[%emt 0:00:29]} 13. Bf4 {[%emt 0:00:58]} Nb6 {[%emt 0:00:55]} 14. Rc1 {[%emt 0:01:20]} Nc4 {[%emt 0:00:41]} 15. Qb3 {[%emt 0:00:49]} Qd7 {[%emt 0:00:39]} 16. h3 {[%emt 0:00:13]} Rfe8 {[%emt 0:00:49]} 17. Bh2 {[%emt 0:02:10]} Na5 {[%emt 0:01:10]} 18. Qd1 {[%emt 0:00:49]} Nc4 {[%emt 0:00:28]} 19. Qb3 {[%emt 0:00:02]} d5 {[%emt 0:01:27]} 20. e5 {[%emt 0:01:15]} Ne4 {[%emt 0:00:03]} 21. Bd3 {[%emt 0:00:56]} Bh6 {[%emt 0:00:04]} 22. Rc2 {[%emt 0:00:42]} Ned2 {[%emt 0:01:16]} 23. Nxd2 {[%emt 0:00:39]} Nxd2 {[%emt 0:01:15]} 24. Qa2 {[%emt 0:00:09]} Qd8 {[%emt 0:00:11]} 25. Rd1 {[%emt 0:00:32]} Ne4 {[%emt 0:00:15]} 26. Ne2 {[%emt 0:02:00]} Rxc2 {[%emt 0:00:21]} 27. Bxc2 {[%emt 0:00:01]} e6 {[%emt 0:02:05]} 28. Bf4 {[%emt 0:02:37]} Qh4 {[%emt 0:00:02]} 29. Bxe4 {[%emt 0:01:34]} dxe4 {[%emt 0:01:26]} 30. Be3 {[%emt 0:00:06]} Bd5 {[%emt 0:00:27]} 31. Qb1 {[%emt 0:00:01]} Bxe3 {[%emt 0:00:10]} 32. fxe3 {[%emt 0:00:10]} Bc4 {[%emt 0:00:01]} 33. Nc3 {[%emt 0:00:00]} Bd3 {[%emt 0:00:05]} 34. Qc1 {[%emt 0:00:10]} a5 35. Qd2 {[%emt 0:00:10]} b4 {[%emt 0:02:14]} 36. axb4 {[%emt 0:00:02]} axb4 {[%emt 0:00:10]} 37. Na4 {[%emt 0:00:08]} b3 {[%emt 0:00:20]} 38. Nc5 Bc4 {[%emt 0:00:04]} 39. Ra1 {[%emt 0:00:19]} Bd5 {[%emt 0:00:18]} 40. Qf2 {[%emt 0:00:01]} Qe7 {[%emt 0:00:15]} 41. Qf4 {[%emt 0:00:16]} Rc8 {[%emt 0:00:10]} 42. h4 {[%emt 0:00:52]} Kg7 {[%emt 0:00:04]} 43. Qg5 {[%emt 0:00:11]} Qxg5 {[%emt 0:00:21]} 44. hxg5 {[%emt 0:00:01]} h6 {[%emt 0:00:00]} 45. gxh6+ {[%emt 0:00:14]} Kxh6 {[%emt 0:00:02]} 46. Ra7 {[%emt 0:00:07]} Kg7 {[%emt 0:00:11]} 47. Ra6 {[%emt 0:00:11]} g5 {[%emt 0:00:03]} 48. Kf2 {[%emt 0:00:23]} Kg6 {[%emt 0:00:08]} 49. Kg3 {[%emt 0:00:09]} Kf5 {[%emt 0:00:01]} 50. Ra7 {[%emt 0:00:02]} Kg6 {[%emt 0:00:01]} 51. Ra6 {[%emt 0:00:05]} Rb8 {[%emt 0:00:22]} 52. Ra4 {[%emt 0:00:22]} Rb6 {[%emt 0:00:35]} 53. Kf2 {[%emt 0:00:09]} Rb8 {[%emt 0:00:01]} 54. Ra3 {[%emt 0:00:16]} Kf5 {[%emt 0:00:05]} 55. Ra7 {[%emt 0:00:02]} 1/2-1/2

[Event "RUS-chT Men Rapid 2019"]
[Site "Sochi"]
[Date "2019.10.18"]
[Round "4.6"]
[White "Triapishko, Alexandr"]
[Black "Pridorozhni, Aleksei"]
[Result "0-1"]
[ECO "B40"]
[WhiteElo "2514"]
[BlackElo "2599"]
[Annotator "ChessBase"]
[PlyCount "111"]
[EventDate "2019.10.18"]
[EventType "swiss"]
[EventCountry "RUS"]
[SourceTitle "playchess.com"]
[Source "ChessBase"]
[SourceQuality "1"]
[TimeControl "900+10"]

1. e4 {[%emt 0:00:00]} c5 {[%emt 0:00:00]} 2. Nf3 {[%emt 0:00:18]} e6 {[%emt 0:00:00]} 3. d4 {[%emt 0:00:06]} cxd4 {[%emt 0:00:00]} 4. Nxd4 {[%emt 0:00:01]} Nf6 {[%emt 0:00:00]} 5. Nc3 {[%emt 0:00:05]} Nc6 {[%emt 0:00:10]} 6. Ndb5 {[%emt 0:00:08]} Bc5 {[%emt 0:00:00]} 7. Nd6+ {[%emt 0:01:03]} Ke7 {[%emt 0:00:00]} 8. Bf4 {[%emt 0:00:11]} e5 {[%emt 0:00:00]} 9. Nf5+ {[%emt 0:00:18]} Kf8 {[%emt 0:00:00]} 10. Bg5 {[%emt 0:00:54]} h6 {[%emt 0:00:02]} 11. Bxf6 {[%emt 0:01:26]} Qxf6 {[%emt 0:00:03]} 12. Nd5 {[%emt 0:00:12]} Qd8 {[%emt 0:00:02]} 13. c3 {[%emt 0:01:46]} g6 {[%emt 0:00:02]} 14. Nfe3 {[%emt 0:00:29]} a6 {[%emt 0:00:06]} 15. Bc4 {[%emt 0:01:59]} Kg7 {[%emt 0:00:04]} 16. O-O {[%emt 0:00:36]} d6 {[%emt 0:00:07]} 17. Kh1 {[%emt 0:00:25]} Rf8 {[%emt 0:00:06]} 18. Qe2 {[%emt 0:01:29]} b5 {[%emt 0:01:40]} 19. Bd3 {[%emt 0:00:33]} b4 {[%emt 0:00:10]} 20. cxb4 {[%emt 0:02:15]} Nxb4 {[%emt 0:00:03]} 21. Nxb4 {[%emt 0:00:15]} Bxb4 {[%emt 0:00:01]} 22. f4 {[%emt 0:00:34]} exf4 {[%emt 0:00:16]} 23. Rxf4 {[%emt 0:00:07]} Bc5 {[%emt 0:00:09]} 24. Raf1 {[%emt 0:00:46]} Bd4 {[%emt 0:00:52]} 25. Nc4 {[%emt 0:01:14]} Be6 {[%emt 0:00:15]} 26. e5 {[%emt 0:01:14]} dxe5 {[%emt 0:00:12]} 27. Nxe5 {[%emt 0:00:03]} Qd6 {[%emt 0:00:14]} 28. Nc4 {[%emt 0:00:15]} Qd5 {[%emt 0:01:08]} 29. b3 {[%emt 0:00:18]} Rad8 {[%emt 0:00:04]} 30. Be4 {[%emt 0:00:04]} Qc5 {[%emt 0:00:18]} 31. g3 {[%emt 0:00:18]} a5 {[%emt 0:00:25]} 32. Qe1 {[%emt 0:00:39]} a4 {[%emt 0:00:15]} 33. Qa5 {[%emt 0:00:09]} axb3 {[%emt 0:00:23]} 34. Qxc5 {[%emt 0:00:06]} Bxc5 {[%emt 0:00:02]} 35. axb3 {[%emt 0:00:02]} Rb8 {[%emt 0:00:17]} 36. Na5 {[%emt 0:00:23]} Rb5 {[%emt 0:00:19]} 37. Nc6 {[%emt 0:00:13]} Rxb3 {[%emt 0:00:07]} 38. Bg2 {[%emt 0:00:02]} Rb2 {[%emt 0:00:11]} 39. Nd4 {[%emt 0:00:07]} Ba2 {[%emt 0:00:17]} 40. Nc6 {[%emt 0:00:18]} Rxg2 {[%emt 0:00:44]} 41. Kxg2 {[%emt 0:00:12]} Bd5+ {[%emt 0:00:02]} 42. Kh3 {[%emt 0:00:00]} Bxc6 {[%emt 0:00:02]} 43. g4 {[%emt 0:00:15]} Bd7 {[%emt 0:00:13]} 44. Kg2 {[%emt 0:00:01]} Be6 {[%emt 0:00:05]} 45. Rd1 {[%emt 0:00:23]} Ra8 {[%emt 0:00:06]} 46. h3 {[%emt 0:00:07]} Ra2+ {[%emt 0:00:13]} 47. Kg3 {[%emt 0:00:04]} g5 {[%emt 0:00:05]} 48. Rf3 {[%emt 0:00:18]} Bb6 {[%emt 0:00:16]} 49. Rc3 {[%emt 0:00:03]} Ba7 {[%emt 0:00:35]} 50. Kf3 {[%emt 0:00:13]} Rh2 {[%emt 0:00:10]} 51. Ke4 {[%emt 0:00:06]} Bb8 {[%emt 0:00:07]} 52. Rcd3 {[%emt 0:00:12]} Bf4 {[%emt 0:00:04]} 53. Rc3 {[%emt 0:00:15]} h5 {[%emt 0:00:02]} 54. Rg1 {[%emt 0:00:07]} hxg4 {[%emt 0:00:06]} 55. hxg4 {[%emt 0:00:01]} Rh4 {[%emt 0:00:03]} 56. Kd4 0-1

[Event "RUS-chT Men Rapid 2019"]
[Site "Sochi"]
[Date "2019.10.18"]
[Round "4.7"]
[White "Belyakov, Bogdan"]
[Black "Moiseenko, Vadim"]
[Result "1-0"]
[ECO "C44"]
[WhiteElo "2495"]
[BlackElo "2532"]
[Annotator "ChessBase"]
[PlyCount "79"]
[EventDate "2019.10.18"]
[EventType "swiss"]
[EventCountry "RUS"]
[SourceTitle "playchess.com"]
[Source "ChessBase"]
[SourceQuality "1"]
[TimeControl "900+10"]

1. e4 {[%emt 0:00:00]} e5 {[%emt 0:00:00]} 2. Nf3 {[%emt 0:00:00]} Nc6 {[%emt 0:00:00]} 3. c3 {[%emt 0:00:00]} Nf6 {[%emt 0:01:13]} 4. d4 {[%emt 0:00:00]} d5 {[%emt 0:00:41]} 5. Bb5 {[%emt 0:02:35]} exd4 {[%emt 0:00:42]} 6. e5 {[%emt 0:00:56]} Nd7 {[%emt 0:00:06]} 7. O-O {[%emt 0:01:10]} Be7 {[%emt 0:00:09]} 8. Bxc6 {[%emt 0:00:26]} bxc6 {[%emt 0:00:01]} 9. Nxd4 {[%emt 0:00:02]} Nb8 {[%emt 0:00:04]} 10. f4 {[%emt 0:01:48]} c5 {[%emt 0:00:19]} 11. Nb3 {[%emt 0:00:36]} Bf5 {[%emt 0:00:43]} 12. Be3 {[%emt 0:00:09]} c4 {[%emt 0:02:15]} 13. Nc5 {[%emt 0:01:13]} c6 {[%emt 0:01:54]} 14. g4 {[%emt 0:04:30]} Bc8 {[%emt 0:00:11]} 15. b4 {[%emt 0:00:36]} h5 {[%emt 0:01:00]} 16. f5 {[%emt 0:00:02]} a5 {[%emt 0:01:34]} 17. gxh5 {[%emt 0:01:05]} axb4 {[%emt 0:00:02]} 18. cxb4 {[%emt 0:00:46]} Na6 {[%emt 0:00:01]} 19. Qg4 {[%emt 0:01:24]} Rh7 {[%emt 0:01:43]} 20. h6 {[%emt 0:00:06]} Kf8 {[%emt 0:00:21]} 21. Ne6+ {[%emt 0:00:12]} fxe6 {[%emt 0:00:10]} 22. f6 {[%emt 0:00:37]} Bxf6 {[%emt 0:04:33]} 23. exf6 {[%emt 0:00:07]} g5 {[%emt 0:00:15]} 24. Qxg5 {[%emt 0:00:08]} d4 {[%emt 0:00:00]} 25. Qg6 {[%emt 0:00:09]} Raa7 {[%emt 0:00:01]} 26. f7 {[%emt 0:00:16]} Raxf7 {[%emt 0:00:26]} 27. Qxh7 {[%emt 0:00:04]} Rxf1+ {[%emt 0:00:01]} 28. Kxf1 {[%emt 0:00:02]} Qf6+ {[%emt 0:00:04]} 29. Bf2 {[%emt 0:00:07]} e5 {[%emt 0:00:15]} 30. Nd2 {[%emt 0:00:31]} Nxb4 {[%emt 0:00:14]} 31. Ne4 {[%emt 0:00:12]} Bh3+ {[%emt 0:00:05]} 32. Kg1 {[%emt 0:00:03]} Qf7 {[%emt 0:00:47]} 33. Qxf7+ {[%emt 0:00:05]} Kxf7 {[%emt 0:00:00]} 34. Ng5+ Kg6 35. h7 {[%emt 0:00:07]} Kg7 {[%emt 0:00:01]} 36. Bg3 {[%emt 0:00:05]} Nd3 {[%emt 0:00:01]} 37. Rd1 {[%emt 0:00:04]} c3 {[%emt 0:00:16]} 38. Rxd3 {[%emt 0:00:02]} c2 {[%emt 0:00:00]} 39. Bxe5+ {[%emt 0:00:02]} Kg6 {[%emt 0:00:00]} 40. Bf4 {[%emt 0:00:02]} 1-0

[Event "RUS-chT Men Rapid 2019"]
[Site "Sochi"]
[Date "2019.10.18"]
[Round "4.8"]
[White "Rozum, Ivan"]
[Black "Savitskiy, Sergey"]
[Result "0-1"]
[ECO "A05"]
[WhiteElo "2599"]
[BlackElo "2407"]
[Annotator "ChessBase"]
[PlyCount "98"]
[EventDate "2019.10.18"]
[EventType "swiss"]
[EventCountry "RUS"]
[SourceTitle "playchess.com"]
[Source "ChessBase"]
[SourceQuality "1"]
[TimeControl "900+10"]

1. Nf3 {[%emt 0:00:00]} Nf6 {[%emt 0:00:07]} 2. g3 {[%emt 0:00:00]} g6 {[%emt 0:00:01]} 3. b3 {[%emt 0:00:00]} Bg7 {[%emt 0:00:01]} 4. Bb2 {[%emt 0:00:00]} O-O {[%emt 0:00:05]} 5. Bg2 {[%emt 0:00:00]} c5 {[%emt 0:00:05]} 6. c4 {[%emt 0:00:00]} Nc6 {[%emt 0:00:01]} 7. O-O {[%emt 0:00:06]} d6 {[%emt 0:00:02]} 8. d4 {[%emt 0:00:06]} cxd4 {[%emt 0:00:01]} 9. Nxd4 {[%emt 0:00:02]} Bd7 {[%emt 0:00:01]} 10. Nc2 {[%emt 0:00:34]} Qa5 {[%emt 0:04:27]} 11. Nc3 {[%emt 0:01:00]} Rfc8 {[%emt 0:04:12]} 12. Ne3 {[%emt 0:02:27]} Ng4 {[%emt 0:01:26]} 13. Nxg4 {[%emt 0:01:09]} Bxg4 {[%emt 0:00:50]} 14. Rc1 {[%emt 0:00:36]} Rab8 {[%emt 0:00:35]} 15. h3 {[%emt 0:00:25]} Bd7 {[%emt 0:00:14]} 16. c5 {[%emt 0:07:31]} Be6 {[%emt 0:00:42]} 17. cxd6 {[%emt 0:00:05]} Rd8 {[%emt 0:00:01]} 18. e3 {[%emt 0:00:53]} Rxd6 {[%emt 0:00:21]} 19. Qe2 {[%emt 0:00:01]} Rbd8 {[%emt 0:00:01]} 20. Ba1 {[%emt 0:01:17]} Rd2 {[%emt 0:00:41]} 21. Qf3 {[%emt 0:00:34]} Nb4 {[%emt 0:00:33]} 22. Ne4 {[%emt 0:01:00]} Rxa2 {[%emt 0:00:36]} 23. Bxg7 {[%emt 0:00:03]} Kxg7 {[%emt 0:00:01]} 24. Nc5 {[%emt 0:00:03]} Bd5 {[%emt 0:01:17]} 25. Qf4 {[%emt 0:00:03]} Bxg2 {[%emt 0:00:26]} 26. Kxg2 {[%emt 0:00:01]} Nd3 {[%emt 0:00:38]} 27. Nxd3 {[%emt 0:00:07]} Rxd3 {[%emt 0:00:02]} 28. Rc7 {[%emt 0:00:10]} Qd5+ {[%emt 0:01:14]} 29. e4 {[%emt 0:00:10]} Qe6 {[%emt 0:00:19]} 30. Rxb7 {[%emt 0:00:11]} Re2 {[%emt 0:00:33]} 31. Rxa7 {[%emt 0:01:09]} Rxe4 {[%emt 0:00:01]} 32. Qc7 {[%emt 0:00:23]} h5 {[%emt 0:00:04]} 33. Rb7 {[%emt 0:00:09]} h4 {[%emt 0:00:16]} 34. Rb6 {[%emt 0:00:03]} Qd5 {[%emt 0:00:13]} 35. Qb7 {[%emt 0:00:17]} Qf5 {[%emt 0:00:20]} 36. Kg1 {[%emt 0:00:14]} Re2 {[%emt 0:00:17]} 37. g4 {[%emt 0:00:04]} Qe5 {[%emt 0:00:10]} 38. Rb5 {[%emt 0:00:12]} Qd4 {[%emt 0:00:07]} 39. Qb6 {[%emt 0:00:13]} Qf4 {[%emt 0:00:15]} 40. Rb4 {[%emt 0:00:09]} Qe5 {[%emt 0:00:09]} 41. Qb5 {[%emt 0:00:11]} Qxb5 {[%emt 0:00:08]} 42. Rxb5 {[%emt 0:00:01]} Rxh3 {[%emt 0:00:00]} 43. Rb7 {[%emt 0:00:06]} e6 {[%emt 0:00:16]} 44. b4 {[%emt 0:00:04]} Rb2 {[%emt 0:00:01]} 45. Re1 {[%emt 0:00:10]} Rf3 {[%emt 0:00:12]} 46. Rxe6 {[%emt 0:00:02]} Rfxf2 {[%emt 0:00:02]} 47. Ree7 {[%emt 0:00:06]} h3 {[%emt 0:00:10]} 48. Re1 {[%emt 0:00:09]} Rg2+ {[%emt 0:00:03]} 49. Kh1 {[%emt 0:00:00]} Rh2+ {[%emt 0:00:01]} 0-1

[Event "RUS-chT Men Rapid 2019"]
[Site "Sochi"]
[Date "2019.10.18"]
[Round "4.9"]
[White "Timofeev, Artyom"]
[Black "Drygalov, Andrey"]
[Result "1/2-1/2"]
[ECO "A20"]
[WhiteElo "2595"]
[BlackElo "2484"]
[Annotator "ChessBase"]
[PlyCount "27"]
[EventDate "2019.10.18"]
[EventType "swiss"]
[EventCountry "RUS"]
[SourceTitle "playchess.com"]
[Source "ChessBase"]
[SourceQuality "1"]
[TimeControl "900+10"]

1. c4 {[%emt 0:00:00]} e5 {[%emt 0:00:00]} 2. e3 {[%emt 0:00:00]} Nf6 {[%emt 0:00:00]} 3. Nc3 {[%emt 0:00:00]} Nc6 {[%emt 0:00:00]} 4. d3 {[%emt 0:00:00]} g6 {[%emt 0:00:00]} 5. Be2 {[%emt 0:00:26]} Bg7 {[%emt 0:00:01]} 6. Nf3 {[%emt 0:00:02]} O-O {[%emt 0:00:03]} 7. O-O {[%emt 0:00:03]} d6 {[%emt 0:00:26]} 8. Rb1 {[%emt 0:00:09]} a5 {[%emt 0:00:02]} 9. b3 {[%emt 0:00:04]} Re8 {[%emt 0:00:05]} 10. Bb2 {[%emt 0:00:03]} Bf5 {[%emt 0:00:13]} 11. Nh4 {[%emt 0:00:10]} Bd7 {[%emt 0:00:04]} 12. Nf3 {[%emt 0:00:02]} Bf5 {[%emt 0:00:01]} 13. Nh4 {[%emt 0:00:13]} Bd7 {[%emt 0:00:01]} 14. Nf3 {[%emt 0:00:02]} 1/2-1/2